fUSD/lending_fUSD_20250405
["ID","MTS","AMOUNT","RATE_DAILY","PERIOD"]
[357196959,1743885065753,-500.0,0.00048,120]
[357196960,1743885065763,-19960.03914979,0.00048,120]
[357196961,1743885065773,-1012.0,0.00048,9]
[357196962,1743885065782,-325.0,0.00048,120]
[357196963,1743885065791,-636.0,0.00048,120]
[357196964,1743885065800,-900.0,0.00048,49]
[357196965,1743885065809,-150.0,0.00048027,30]
[357196966,1743885065819,-500.0,0.00048032,30]
[357196967,1743885065828,-150.0,0.0004804,30]
[357196968,1743885065837,-150.0,0.0004805,30]
[357196969,1743885065846,-150.0,0.00048084,30]
[357196970,1743885065856,-150.0,0.0004814,30]
[357196971,1743885065865,-150.0,0.00048159,30]
[357196972,1743885065874,-150.0,0.00048196,30]
[357196973,1743885065884,-150.0,0.00048218,30]
[357196974,1743885065894,-150.0,0.00048253,30]
[357196975,1743885065903,-1424.8324528,0.000483,120]
[357196976,1743885065912,-150.0,0.00048309,30]
[357196977,1743885065921,-150.0,0.00048365,30]
[357196978,1743885065931,-150.0,0.00048375,30]
[357196979,1743885065940,-150.0,0.00048396,30]
[357196980,1743885065949,-150.0,0.00048422,30]
[357196981,1743885065959,-910.32711549,0.00048468,20]
[357196982,1743885065967,-150.0,0.00048478,30]
[357196983,1743885065977,-1000.0,0.00048499,120]
[357196984,1743885065986,-5000.0,0.000485,60]
[357196985,1743885065995,-150.0,0.000485,120]
[357196986,1743885066004,-2199.82,0.000485,120]
[357196987,1743885066014,-221.67582343,0.000485,120]
[357196988,1743885066024,-2000.0,0.000485,2]
[357196989,1743885066033,-150.0,0.00048534,30]
[357196990,1743885066042,-150.0,0.00048574,30]
[357196991,1743885066051,-150.0,0.00048591,30]
[357196992,1743885066060,-150.0,0.00048647,30]
[357196993,1743885066069,-150.0,0.000487,30]
[357196994,1743885066079,-150.0,0.00048704,30]
[357196995,1743885066089,-150.0,0.00048738,2]
[357196996,1743885066098,-150.0,0.00048753,30]
[357196997,1743885066107,-150.0,0.0004876,30]
[357196998,1743885066117,-809.90026054,0.000488,120]
[357196999,1743885066126,-8687.66649201,0.000488,120]
[357197000,1743885066136,-150.0,0.00048816,30]
[357197001,1743885066145,-150.0,0.00048873,30]
[357197002,1743885066154,-2080.82,0.0004889,35]
[357197003,1743885066164,-400.0,0.000489,120]
[357197004,1743885066173,-150.0,0.00048929,30]
[357197005,1743885066183,-150.0,0.00048931,30]
[357197006,1743885066192,-3000.0,0.0004895,35]
[357197007,1743885066202,-48733.17565868,0.00048966,120]
[357197008,1743885066211,-150.0,0.00048974,30]
[357197009,1743885066220,-213.24705837,0.00048974,30]
[357197010,1743885066230,-150.0,0.00048974,30]
[357197011,1743885066239,-990.87452005,0.00048974,30]
[357197012,1743885066249,-150.0,0.00048974,30]
[357197013,1743885066259,-150.0,0.00048974,30]
[357197014,1743885066268,-561.5913354,0.00048974,30]
[357197015,1743885066277,-429.78840388,0.00048974,30]
[357197016,1743885066287,-150.0,0.00048985,30]
[357197017,1743885066296,-2679.63048047,0.00048989,120]
[357197018,1743885066305,-2679.63048047,0.00048989,120]
[357197019,1743885066314,-2679.63048047,0.00048989,120]
[357197020,1743885066324,-2679.63048047,0.00048989,120]
[357197021,1743885066334,-2679.63048047,0.00048989,120]
[357197022,1743885066343,-2679.63048047,0.00048989,120]
[357197023,1743885066352,-2679.63048047,0.00048989,120]
[357197024,1743885066361,-2679.63048047,0.00048989,120]
[357197025,1743885066370,-2679.63048047,0.00048989,120]
[357197026,1743885066380,-2679.63048047,0.00048989,120]
[357197027,1743885066390,-50000.0,0.00049,49]
[357197028,1743885066399,-29999.82012972,0.00049,120]
[357197029,1743885066409,-41951.67928448,0.00049,2]
[357197030,1743885066418,-204.45094451,0.00049,7]
[357197031,1743885066427,-917.89477592,0.00049,30]
[357197032,1743885066437,-153.73365107,0.00049,30]
[357197033,1743885066446,-2038.12348683,0.00049,30]
[357197034,1743885066456,-500.0,0.00049,120]
[357197035,1743885066465,-509.93177877,0.00049,120]
[357197036,1743885066475,-5000.50187904,0.00049,6]
[357197037,1743885066484,-457.35445688,0.00049,2]
[357197038,1743885066494,-900.0,0.00049,50]
[357197039,1743885066503,-2110.50621978,0.00049,30]
[357197040,1743885066513,-2000.0,0.00049,120]
[357197041,1743885066522,-12099.0,0.00049,60]
[357197042,1743885066532,-1722.28,0.00049,14]
[357197043,1743885066541,-1000.0,0.00049,2]
[357197044,1743885066551,-1844.78,0.00049004,30]
[357197045,1743885066560,-150.0,0.00049025,30]
[357197046,1743885066569,-1066.0,0.00049035,30]
[357197047,1743885066578,-150.0,0.00049042,30]
[357197048,1743885066588,-2502.02,0.00049053,30]
[357197049,1743885066598,-150.0,0.00049079,30]
[357197050,1743885066608,-1072.05,0.00049095,2]
[357197051,1743885066777,-152.0,0.00049096,14]
[357197052,1743885066813,-150.0,0.00049098,30]
[357197053,1743885066824,-150.0,0.00049109,30]
[357197054,1743885066833,-5000.0,0.0004913,30]
[357197055,1743885066843,-2502.26,0.00049152,30]
[357197056,1743885066852,-150.0,0.00049154,30]
[357197057,1743885066862,-1380.21,0.00049161,30]
[357197058,1743885066872,-2806.74,0.0004919,30]
[357197059,1743885066882,-150.0,0.00049211,30]
[357197060,1743885066891,-2502.03,0.00049215,30]
[357197061,1743885066901,-150.0,0.00049267,30]
[357197062,1743885066911,-150.0,0.00049287,30]
[357197063,1743885066920,-647.0,0.00049291,8]
[357197064,1743885066930,-633.212,0.000493,120]
[357197065,1743885066939,-633.213,0.000493,120]
[357197066,1743885066948,-633.212,0.000493,120]
[357197067,1743885066957,-633.213,0.000493,120]
[357197068,1743885066966,-633.212,0.000493,120]
[357197069,1743885066976,-500.0,0.00049315,120]
[357197070,1743885066985,-500.0,0.00049315,120]
[357197071,1743885066995,-500.0,0.00049315,120]
[357197072,1743885067004,-500.0,0.00049315,120]
[357197073,1743885067013,-500.0,0.00049315,120]
[357197074,1743885067022,-500.0,0.00049315,120]
[357197075,1743885067031,-500.0,0.00049315,120]
[357197076,1743885067041,-500.0,0.00049315,120]
[357197077,1743885067050,-500.0,0.00049315,120]
[357197078,1743885067059,-500.0,0.00049315,120]
[357197079,1743885067069,-500.0,0.00049315,120]
[357197080,1743885067078,-500.0,0.00049315,120]
[357197081,1743885067088,-500.0,0.00049315,120]
[357197082,1743885067097,-500.0,0.00049315,120]
[357197083,1743885067107,-500.0,0.00049315,120]
[357197084,1743885067117,-500.0,0.00049315,120]
[357197085,1743885067126,-500.0,0.00049315,120]
[357197086,1743885067135,-500.0,0.00049315,120]
[357197087,1743885067145,-500.0,0.00049315,120]
[357197088,1743885067154,-499.99964537,0.00049315,120]
[357197089,1743885067164,-507.76549896,0.00049315,2]
[357197090,1743885067173,-187.5,0.00049315,120]
[357197091,1743885067183,-346.07009003,0.00049315,120]
[357197092,1743885067192,-1079.73498787,0.00049315,120]
[357197093,1743885067202,-500.0,0.00049315,2]
[357197094,1743885067212,-500.0,0.00049315,2]
[357197095,1743885067221,-500.0,0.00049315,2]
[357197096,1743885067230,-216.38539912,0.00049315,2]
[357197097,1743885067240,-500.0,0.00049315,120]
[357197098,1743885067249,-498.44366793,0.00049315,120]
[357197099,1743885067259,-750.0,0.00049315,120]
[357197100,1743885067268,-750.0,0.00049315,120]
[357197101,1743885067278,-750.0,0.00049315,120]
[357197102,1743885067288,-750.0,0.00049315,120]
[357197103,1743885067297,-750.0,0.00049315,120]
[357197104,1743885067307,-750.0,0.00049315,120]
[357197105,1743885067316,-750.0,0.00049315,120]
[357197106,1743885067326,-750.0,0.00049315,120]
[357197107,1743885067335,-750.0,0.00049315,120]
[357197108,1743885067344,-750.0,0.00049315,120]
[357197109,1743885067354,-750.0,0.00049315,120]
[357197110,1743885067364,-750.0,0.00049315,120]
[357197111,1743885067375,-750.0,0.00049315,120]
[357197112,1743885067384,-750.0,0.00049315,120]
[357197113,1743885067394,-750.0,0.00049315,120]
[357197114,1743885067404,-750.0,0.00049315,120]
[357197115,1743885067413,-750.0,0.00049315,120]
[357197116,1743885067423,-750.0,0.00049315,120]
[357197117,1743885067433,-750.0,0.00049315,120]
[357197118,1743885067442,-750.0,0.00049315,120]
[357197119,1743885067452,-750.0,0.00049315,120]
[357197120,1743885067464,-750.0,0.00049315,120]
[357197121,1743885067474,-255.17422793,0.00049315,120]
[357197122,1743885067484,-500.0,0.00049315,120]
[357197123,1743885067494,-500.0,0.00049315,120]
[357197124,1743885067503,-500.0,0.00049315,120]
[357197125,1743885067513,-500.0,0.00049315,120]
[357197126,1743885067522,-537.54897916,0.00049315,120]
[357197127,1743885067532,-500.0,0.00049315,120]
[357197128,1743885067541,-1000.0,0.00049315,120]
[357197129,1743885067551,-1000.0,0.00049315,20]
[357197130,1743885067560,-1000.0,0.00049315,20]
[357197131,1743885067570,-1000.0,0.00049315,20]
[357197132,1743885067579,-1000.0,0.00049315,20]
[357197133,1743885067588,-1000.0,0.00049315,20]
[357197134,1743885067598,-1000.0,0.00049315,20]
[357197135,1743885067608,-366.0,0.00049315,20]
[357197136,1743885067617,-1000.0,0.00049315,20]
[357197137,1743885067626,-1000.0,0.00049315,20]
[357197138,1743885067636,-1000.0,0.00049315,20]
[357197139,1743885067645,-1000.0,0.00049315,20]
[357197140,1743885067656,-225.0,0.00049315,90]
[357197141,1743885067667,-225.0,0.00049315,90]
[357197142,1743885067677,-225.0,0.00049315,90]
[357197143,1743885067686,-225.0,0.00049315,90]
[357197144,1743885067696,-225.0,0.00049315,90]
[357197145,1743885067706,-225.0,0.00049315,90]
[357197146,1743885067717,-225.0,0.00049315,90]
[357197147,1743885067726,-225.0,0.00049315,90]
[357197148,1743885067736,-225.0,0.00049315,90]
[357197149,1743885067746,-225.0,0.00049315,90]
[357197150,1743885067756,-225.0,0.00049315,90]
[357197151,1743885067766,-225.0,0.00049315,90]
[357197152,1743885067775,-225.0,0.00049315,90]
[357197153,1743885067785,-225.0,0.00049315,90]
[357197154,1743885067794,-225.0,0.00049315,90]
[357197155,1743885067803,-225.0,0.00049315,90]
[357197156,1743885067813,-225.0,0.00049315,90]
[357197157,1743885067822,-225.0,0.00049315,90]
[357197158,1743885067832,-225.0,0.00049315,90]
[357197159,1743885067841,-225.0,0.00049315,90]
[357197160,1743885067849,-225.0,0.00049315,90]
[357197161,1743885067859,-225.0,0.00049315,90]
[357197162,1743885067868,-225.0,0.00049315,90]
[357197163,1743885067877,-225.0,0.00049315,90]
[357197164,1743885067887,-225.0,0.00049315,90]
[357197165,1743885067897,-225.0,0.00049315,90]
[357197166,1743885067906,-225.0,0.00049315,90]
[357197167,1743885067916,-225.0,0.00049315,90]
[357197168,1743885067925,-225.0,0.00049315,90]
[357197169,1743885067935,-225.0,0.00049315,90]
[357197170,1743885067944,-225.0,0.00049315,90]
[357197171,1743885067954,-225.0,0.00049315,90]
[357197172,1743885067963,-225.0,0.00049315,90]
[357197173,1743885067973,-225.0,0.00049315,90]
[357197174,1743885067982,-225.0,0.00049315,90]
[357197175,1743885067991,-225.0,0.00049315,90]
[357197176,1743885068001,-225.0,0.00049315,90]
[357197177,1743885068011,-225.0,0.00049315,90]
[357197178,1743885068020,-225.0,0.00049315,90]
[357197179,1743885068029,-225.0,0.00049315,90]
[357197180,1743885068039,-225.0,0.00049315,90]
[357197181,1743885068049,-225.0,0.00049315,90]
[357197182,1743885068059,-225.0,0.00049315,90]
[357197183,1743885068068,-225.0,0.00049315,90]
[357197184,1743885068078,-225.0,0.00049315,90]
[357197185,1743885068087,-225.0,0.00049315,90]
[357197186,1743885068096,-225.0,0.00049315,90]
[357197187,1743885068106,-225.0,0.00049315,90]
[357197188,1743885068115,-225.0,0.00049315,90]
[357197189,1743885068125,-225.0,0.00049315,90]
[357197190,1743885068135,-225.0,0.00049315,90]
[357197191,1743885068145,-225.0,0.00049315,90]
[357197192,1743885068154,-225.0,0.00049315,90]
[357197193,1743885068164,-225.0,0.00049315,90]
[357197194,1743885068173,-225.0,0.00049315,90]
[357197195,1743885068183,-225.0,0.00049315,90]
[357197196,1743885068194,-225.0,0.00049315,90]
[357197197,1743885068204,-225.0,0.00049315,90]
[357197198,1743885068214,-225.0,0.00049315,90]
[357197199,1743885068223,-225.0,0.00049315,90]
[357197200,1743885068233,-225.0,0.00049315,90]
[357197201,1743885068243,-225.0,0.00049315,90]
[357197202,1743885068252,-225.0,0.00049315,90]
[357197203,1743885068262,-225.0,0.00049315,90]
[357197204,1743885068271,-225.0,0.00049315,90]
[357197205,1743885068280,-225.0,0.00049315,90]
[357197206,1743885068289,-225.0,0.00049315,90]
[357197207,1743885068299,-225.0,0.00049315,90]
[357197208,1743885068308,-225.0,0.00049315,90]
[357197209,1743885068317,-225.0,0.00049315,90]
[357197210,1743885068327,-225.0,0.00049315,90]
[357197211,1743885068336,-225.0,0.00049315,90]
[357197212,1743885068345,-225.0,0.00049315,90]
[357197213,1743885068355,-225.0,0.00049315,90]
[357197214,1743885068364,-225.0,0.00049315,90]
[357197215,1743885068373,-225.0,0.00049315,90]
[357197216,1743885068382,-225.0,0.00049315,90]
[357197217,1743885068392,-225.0,0.00049315,90]
[357197218,1743885068401,-225.0,0.00049315,90]
[357197219,1743885068410,-225.0,0.00049315,90]
[357197220,1743885068419,-225.0,0.00049315,90]
[357197221,1743885068429,-225.0,0.00049315,90]
[357197222,1743885068438,-225.0,0.00049315,90]
[357197223,1743885068447,-225.0,0.00049315,90]
[357197224,1743885068457,-225.0,0.00049315,90]
[357197225,1743885068467,-225.0,0.00049315,90]
[357197226,1743885068476,-225.0,0.00049315,90]
[357197227,1743885068485,-225.0,0.00049315,90]
[357197228,1743885068495,-225.0,0.00049315,90]
[357197229,1743885068504,-225.0,0.00049315,90]
[357197230,1743885068513,-225.0,0.00049315,90]
[357197231,1743885068523,-225.0,0.00049315,90]
[357197232,1743885068532,-225.0,0.00049315,90]
[357197233,1743885068542,-225.0,0.00049315,90]
[357197234,1743885068552,-225.0,0.00049315,90]
[357197235,1743885068561,-225.0,0.00049315,90]
[357197236,1743885068570,-225.0,0.00049315,90]
[357197237,1743885068580,-167.12366834,0.0004932,120]
[357197238,1743885068589,-167.12366834,0.0004932,120]
[357197239,1743885068598,-167.12366834,0.0004932,120]
[357197240,1743885068608,-167.12366834,0.0004932,120]
[357197241,1743885068618,-167.12366834,0.0004932,120]
[357197242,1743885068627,-167.12366834,0.0004932,120]
[357197243,1743885068637,-167.12366834,0.0004932,120]
[357197244,1743885068647,-167.12,0.0004932,120]
[357197245,1743885068659,-155.98209045,0.0004932,120]
[357197246,1743885068669,-155.98209045,0.0004932,120]
[357197247,1743885068678,-155.98209045,0.0004932,120]
[357197248,1743885068688,-155.98209045,0.0004932,120]
[357197249,1743885068697,-155.98209045,0.0004932,120]
[357197250,1743885068706,-155.98209045,0.0004932,120]
[357197251,1743885068716,-155.98209045,0.0004932,120]
[357197252,1743885068725,-155.98209045,0.0004932,120]
[357197253,1743885068735,-155.98209045,0.0004932,120]
[357197254,1743885068744,-155.98209045,0.0004932,120]
[357197255,1743885068754,-155.98209045,0.0004932,120]
[357197256,1743885068763,-155.98209045,0.0004932,120]
[357197257,1743885068772,-155.98209045,0.0004932,120]
[357197258,1743885068782,-155.98209045,0.0004932,120]
[357197259,1743885068791,-155.98209045,0.0004932,120]
[357197260,1743885068800,-155.98209045,0.0004932,120]
[357197261,1743885068809,-155.98209045,0.0004932,120]
[357197262,1743885068818,-155.98209045,0.0004932,120]
[357197263,1743885068827,-155.98209045,0.0004932,120]
[357197264,1743885068837,-155.98,0.0004932,120]
[357197265,1743885068846,-1412.68820672,0.0004932,120]
[357197266,1743885068856,-1412.68820672,0.0004932,120]
[357197267,1743885068865,-1412.68820672,0.0004932,120]
[357197268,1743885068874,-1412.68820672,0.0004932,120]
[357197269,1743885068884,-1412.68820672,0.0004932,120]
[357197270,1743885068894,-1412.68820672,0.0004932,120]
[357197271,1743885068903,-1412.68820672,0.0004932,120]
[357197272,1743885068913,-1412.68820672,0.0004932,120]
[357197273,1743885068922,-1412.68820672,0.0004932,120]
[357197274,1743885068932,-1412.68820672,0.0004932,120]
[357197275,1743885068941,-1412.68820672,0.0004932,120]
[357197276,1743885068950,-1412.68820672,0.0004932,120]
[357197277,1743885068959,-1412.68820672,0.0004932,120]
[357197278,1743885068969,-1412.68820672,0.0004932,120]
[357197279,1743885068978,-1412.68820672,0.0004932,120]
[357197280,1743885068987,-1412.68820672,0.0004932,120]
[357197281,1743885068997,-1412.68820672,0.0004932,120]
[357197282,1743885069006,-1412.68820672,0.0004932,120]
[357197283,1743885069015,-1412.68820672,0.0004932,120]
[357197284,1743885069025,-1412.68,0.0004932,120]
[357197285,1743885069034,-3296.27248235,0.0004932,120]
[357197286,1743885069043,-3296.27248235,0.0004932,120]
[357197287,1743885069052,-3296.27248235,0.0004932,120]
[357197288,1743885069062,-3296.27248235,0.0004932,120]
[357197289,1743885069071,-3296.27248235,0.0004932,120]
[357197290,1743885069080,-3296.27248235,0.0004932,120]
[357197291,1743885069090,-3296.27248235,0.0004932,120]
[357197292,1743885069099,-3296.27248235,0.0004932,120]
[357197293,1743885069108,-3296.27248235,0.0004932,120]
[357197294,1743885069118,-3296.27248235,0.0004932,120]
[357197295,1743885069127,-3296.27248235,0.0004932,120]
[357197296,1743885069137,-3296.27248235,0.0004932,120]
[357197297,1743885069146,-3296.27248235,0.0004932,120]
[357197298,1743885069155,-3296.27248235,0.0004932,120]
[357197299,1743885069164,-3296.27248235,0.0004932,120]
[357197300,1743885069213,-3296.27248235,0.0004932,120]
[357197301,1743885069222,-3296.27248235,0.0004932,120]
[357197302,1743885069231,-3296.27248235,0.0004932,120]
[357197303,1743885069241,-3296.27248235,0.0004932,120]
[357197304,1743885069251,-3296.27,0.0004932,120]
[357197305,1743885069260,-598.40050615,0.0004932,120]
[357197306,1743885069269,-598.40050615,0.0004932,120]
[357197307,1743885069279,-598.40050615,0.0004932,120]
[357197308,1743885069288,-598.40050615,0.0004932,120]
[357197309,1743885069298,-598.40050615,0.0004932,120]
[357197310,1743885069307,-598.40050615,0.0004932,120]
[357197311,1743885069316,-598.40050615,0.0004932,120]
[357197312,1743885069325,-598.40050615,0.0004932,120]
[357197313,1743885069334,-598.40050615,0.0004932,120]
[357197314,1743885069343,-598.40050615,0.0004932,120]
[357197315,1743885069352,-598.40050615,0.0004932,120]
[357197316,1743885069361,-598.40050615,0.0004932,120]
[357197317,1743885069370,-598.40050615,0.0004932,120]
[357197318,1743885069379,-598.40050615,0.0004932,120]
[357197319,1743885069389,-598.40050615,0.0004932,120]
[357197320,1743885069399,-598.40050615,0.0004932,120]
[357197321,1743885069408,-598.40050615,0.0004932,120]
[357197322,1743885069417,-598.40050615,0.0004932,120]
[357197323,1743885069427,-598.40050615,0.0004932,120]
[357197324,1743885069436,-598.4,0.0004932,120]
[357197325,1743885069446,-1396.26784768,0.0004932,120]
[357197326,1743885069456,-1396.26784768,0.0004932,120]
[357197327,1743885069466,-1396.26784768,0.0004932,120]
[357197328,1743885069475,-1396.26784768,0.0004932,120]
[357197329,1743885069485,-1396.26784768,0.0004932,120]
[357197330,1743885069495,-1396.26784768,0.0004932,120]
[357197331,1743885069504,-1396.26784768,0.0004932,120]
[357197332,1743885069513,-1396.26784768,0.0004932,120]
[357197333,1743885069523,-1396.26784768,0.0004932,120]
[357197334,1743885069532,-1396.26784768,0.0004932,120]
[357197335,1743885069541,-1396.26784768,0.0004932,120]
[357197336,1743885069551,-1396.26784768,0.0004932,120]
[357197337,1743885069560,-1396.26784768,0.0004932,120]
[357197338,1743885069569,-1396.26784768,0.0004932,120]
[357197339,1743885069579,-1396.26784768,0.0004932,120]
[357197340,1743885069588,-1396.26784768,0.0004932,120]
[357197341,1743885069598,-1396.26784768,0.0004932,120]
[357197342,1743885069607,-1396.26784768,0.0004932,120]
[357197343,1743885069616,-1396.26784768,0.0004932,120]
[357197344,1743885069625,-1396.26,0.0004932,120]
[357197345,1743885069635,-150.0,0.00049324,30]
[357197346,1743885069644,-150.73453551,0.00049346,120]
[357197347,1743885069655,-150.0,0.0004935,30]
[357197348,1743885069667,-170.59,0.00049352,120]
[357197349,1743885069677,-3064.78,0.00049358,30]
[357197350,1743885069687,-150.0,0.0004938,30]
[357197351,1743885069696,-2502.26,0.00049395,30]
[357197352,1743885069707,-150.0,0.00049436,30]
[357197353,1743885069717,-1000.0,0.00049452,20]
[357197354,1743885069726,-1000.0,0.00049452,20]
[357197355,1743885069734,-1000.0,0.00049452,20]
[357197356,1743885069747,-1000.0,0.00049452,20]
[357197357,1743885069756,-1000.0,0.00049452,20]
[357197358,1743885069765,-1000.0,0.00049452,20]
[357197359,1743885069773,-150.0,0.00049465,30]
[357197360,1743885069783,-5000.0,0.00049477,30]
[357197361,1743885069791,-5000.0,0.00049487,30]
[357197362,1743885069801,-500.0,0.0004949,30]
[357197363,1743885069810,-150.0,0.00049493,30]
[357197364,1743885069818,-149945.07629804,0.000495,30]
[357197365,1743885069827,-250.26880756,0.000495,30]
[357197366,1743885069837,-26740.52276318,0.000495,15]
[357197367,1743885069846,-144861.03303105,0.000495,5]
[357197368,1743885069855,-2618.64,0.00049516,30]
[357197369,1743885069864,-2000.0,0.0004952,120]
[357197370,1743885069872,-20793.9,0.0004954,30]
[357197371,1743885069881,-150.0,0.00049549,30]
[357197372,1743885069890,-3000.0,0.0004955,35]
[357197373,1743885069899,-1000.0,0.00049589,20]
[357197374,1743885069909,-1000.0,0.00049589,20]
[357197375,1743885069918,-1000.0,0.00049589,20]
[357197376,1743885069926,-1000.0,0.00049589,20]
[357197377,1743885069935,-1221.20195466,0.000496,30]
[357197378,1743885069944,-962.02,0.00049602,30]
[357197379,1743885069954,-150.0,0.00049605,30]
[357197380,1743885069964,-150.0,0.00049644,30]
[357197381,1743885069973,-150.0,0.00049662,30]
[357197382,1743885069983,-5000.0,0.0004967,30]
[357197383,1743885069992,-150.0,0.00049675,30]
[357197384,1743885070001,-150.0,0.00049676,120]
[357197385,1743885070010,-3002.1628127,0.0004968,30]
[357197386,1743885070019,-4446.41,0.00049681,30]
[357197387,1743885070028,-150.0,0.00049718,30]
[357197388,1743885070037,-1000.0,0.00049726,20]
[357197389,1743885070045,-1000.0,0.00049726,20]
[357197390,1743885070054,-1000.0,0.00049726,20]
[357197391,1743885070063,-1000.0,0.00049726,20]
[357197392,1743885070072,-5000.0,0.00049731,30]
[357197393,1743885070082,-5000.0,0.00049751,30]
[357197394,1743885070091,-6350.96,0.00049767,60]
[357197395,1743885070100,-6350.96,0.00049767,60]
[357197396,1743885070109,-6350.96,0.00049767,60]
[357197397,1743885070118,-6350.96,0.00049767,60]
[357197398,1743885070127,-2500.0,0.0004977,30]
[357197399,1743885070137,-150.0,0.00049775,30]
[357197400,1743885070147,-3000.0,0.0004978,35]
[357197401,1743885070157,-3896.57157165,0.0004979,120]
[357197402,1743885070167,-5000.0,0.00049795,30]
[357197403,1743885070176,-1007.04985502,0.000498,120]
[357197404,1743885070185,-28168.0105538,0.000498,30]
[357197405,1743885070194,-2643.34,0.00049806,30]
[357197406,1743885070204,-150.0,0.00049822,30]
[357197407,1743885070214,-150.0,0.00049831,30]
[357197408,1743885070223,-3676.87,0.00049839,30]
[357197409,1743885070232,-161.0,0.00049839,120]
[357197410,1743885070242,-3500.0,0.0004985,35]
[357197411,1743885070251,-504.98105689,0.00049853,30]
[357197412,1743885070260,-1000.0,0.00049863,20]
[357197413,1743885070270,-1000.0,0.00049863,20]
[357197414,1743885070279,-1000.0,0.00049863,20]
[357197415,1743885070289,-1000.0,0.00049863,20]
[357197416,1743885070298,-5000.0,0.00049872,30]
[357197417,1743885070308,-31279.78146155,0.0004988,30]
[357197418,1743885070317,-6411.12302649,0.0004988,30]
[357197419,1743885070327,-150.0,0.00049887,30]
[357197420,1743885070336,-936.64867143,0.00049889,120]
[357197421,1743885070346,-936.64867143,0.00049889,120]
[357197422,1743885070355,-936.64867143,0.00049889,120]
[357197423,1743885070365,-936.64867143,0.00049889,120]
[357197424,1743885070375,-936.64867143,0.00049889,120]
[357197425,1743885070384,-936.64867143,0.00049889,120]
[357197426,1743885070394,-936.64867143,0.00049889,120]
[357197427,1743885070404,-936.64867143,0.00049889,120]
[357197428,1743885070413,-936.64867143,0.00049889,120]
[357197429,1743885070423,-936.64867143,0.00049889,120]
[357197430,1743885070432,-1002.0,0.000499,30]
[357197431,1743885070442,-244.69962984,0.000499,120]
[357197432,1743885070452,-200.0,0.000499,18]
[357197433,1743885070462,-1312.36469415,0.000499,120]
[357197434,1743885070471,-5000.0,0.00049935,30]
[357197435,1743885070481,-5000.0,0.00049936,30]
[357197436,1743885070491,-150.0,0.00049944,30]
[357197437,1743885070501,-5000.0,0.00049975,30]
[357197438,1743885070510,-6000.00313689,0.0004998,30]
[357197439,1743885070519,-589.24192572,0.0004998,7]
[357197440,1743885070529,-42724.86828008,0.0004999,2]
[357197441,1743885070539,-5326.63463455,0.0004999,14]
[357197442,1743885070548,-1000.0,0.00049999,120]
[357197443,1743885070558,-50000.0,0.0005,50]
[357197444,1743885070567,-2240.0,0.0005,120]
[357197445,1743885070577,-6476.34304095,0.0005,5]
[357197446,1743885070587,-2634.3274726,0.0005,5]
[357197447,1743885070596,-2911.12796644,0.0005,3]
[357197448,1743885070606,-3812.20598045,0.0005,120]
[357197449,1743885070615,-210.66470989,0.0005,2]
[357197450,1743885070625,-1135.62901582,0.0005,2]
[357197451,1743885070634,-764.67880821,0.0005,7]
[357197452,1743885070644,-1515.58787025,0.0005,2]
[357197453,1743885070653,-347.79614234,0.0005,120]
[357197454,1743885070663,-265.99181071,0.0005,120]
[357197455,1743885070673,-1400.0,0.0005,120]
[357197456,1743885070682,-204.0,0.0005,120]
[357197457,1743885070691,-20000.0,0.0005,120]
[357197458,1743885070701,-708.0,0.0005,15]